[Event "January 2 Early 2024"]
[Site "https://www.chess.com"]
[Date "2024.01.02"]
[Round "11"]
[White "Grycel, Kamil"]
[Black "Ankerst, Mihael"]
[Result "0-1"]
[Board "68"]
[TimeControl "180+1"]
[WhiteFideId "1115499"]
[BlackFideId "14602369"]
[WhiteElo "2608"]
[BlackElo "2360"]
[WhiteTeam "POL"]
[BlackTeam "SLO"]
[WhiteClock "0:00:04"]
[BlackClock "0:00:13"]

1. d4 {[%clk 0:02:54]}  Nf6 {[%clk 0:02:59]} 2. Nf3 {[%clk 0:02:54]}  g6 {[%clk 0:03:00]} 3. Bf4 {[%clk 0:02:53]}  Bg7 {[%clk 0:03:00]} 4. e3 {[%clk 0:02:54]}  d6 {[%clk 0:03:01]} 5. h3 {[%clk 0:02:54]}  O-O {[%clk 0:03:02]} 6. Be2 {[%clk 0:02:55]}  c5 {[%clk 0:03:02]} 7. c3 {[%clk 0:02:55]}  Nc6 {[%clk 0:03:02]} 8. O-O {[%clk 0:02:54]}  Be6 {[%clk 0:03:03]} 9. Nbd2 {[%clk 0:02:46]}  Qb6 {[%clk 0:03:03]} 10. Qc1 {[%clk 0:02:37]}  Rfc8 {[%clk 0:03:02]} 11. dxc5 {[%clk 0:02:33]}  Qxc5 {[%clk 0:03:00]} 12. Nb3 {[%clk 0:02:30]}  Qb6 {[%clk 0:03:00]} 13. Rd1 {[%clk 0:02:27]}  a6 {[%clk 0:02:59]} 14. Nbd4 {[%clk 0:02:21]}  Bd7 {[%clk 0:02:59]} 15. Qc2 {[%clk 0:02:15]}  Na5 {[%clk 0:03:00]} 16. Bh2 {[%clk 0:02:09]}  Nc4 {[%clk 0:02:56]} 17. b3 {[%clk 0:02:00]}  Na5 {[%clk 0:02:50]} 18. Qb2 {[%clk 0:01:59]}  Rc7 {[%clk 0:02:46]} 19. Rac1 {[%clk 0:00:56]}  Rac8 {[%clk 0:02:45]} 20. Qa1 {[%clk 0:00:56]}  e5 {[%clk 0:02:41]} 21. Nc2 {[%clk 0:00:52]}  Rxc3 {[%clk 0:02:40]} 22. Na3 {[%clk 0:00:50]}  Ne4 {[%clk 0:02:29]} 23. Nc4 {[%clk 0:00:45]}  Nxc4 {[%clk 0:02:28]} 24. Bxc4 {[%clk 0:00:45]}  Rxc1 {[%clk 0:02:12]} 25. Rxc1 {[%clk 0:00:44]}  Rc5 {[%clk 0:01:52]} 26. Bd3 {[%clk 0:00:34]}  Nf6 {[%clk 0:01:37]} 27. Nd2 {[%clk 0:00:25]}  Nd5 {[%clk 0:01:17]} 28. Be4 {[%clk 0:00:21]}  Nb4 {[%clk 0:01:11]} 29. Nc4 {[%clk 0:00:19]}  Qc7 {[%clk 0:01:11]} 30. Rd1 {[%clk 0:00:19]}  d5 {[%clk 0:01:06]} 31. a3 {[%clk 0:00:19]}  Nc2 {[%clk 0:00:42]} 32. Qb2 {[%clk 0:00:15]}  dxc4 {[%clk 0:00:39]} 33. Qxc2 {[%clk 0:00:11]}  cxb3 {[%clk 0:00:33]} 34. Qxb3 {[%clk 0:00:11]}  b5 {[%clk 0:00:34]} 35. Bd5 {[%clk 0:00:10]}  Bc6 {[%clk 0:00:29]} 36. e4 {[%clk 0:00:10]}  Bxd5 {[%clk 0:00:25]} 37. exd5 {[%clk 0:00:11]}  Rc1 {[%clk 0:00:22]} 38. Bg3 {[%clk 0:00:10]}  Qc4 {[%clk 0:00:18]} 39. Qf3 {[%clk 0:00:09]}  e4 {[%clk 0:00:15]} 40. Rxc1 {[%clk 0:00:05]}  Qxc1+ {[%clk 0:00:13]} 41. Kh2 {[%clk 0:00:04]}  exf3 {[%clk 0:00:13]} 0-1

[Event "January 2 Early 2024"]
[Site "https://www.chess.com"]
[Date "2024.01.02"]
[Round "11"]
[White "Aldokhin, Ivan"]
[Black "Novikov, Evgenij"]
[Result "1-0"]
[Board "71"]
[TimeControl "180+1"]
[WhiteFideId "24115720"]
[BlackFideId "4125380"]
[WhiteElo "2651"]
[BlackElo "2503"]
[WhiteTeam "RUS"]
[BlackTeam "RUS"]
[WhiteClock "0:00:29"]
[BlackClock "0:00:00"]

1. e4 {[%clk 0:02:59]}  d5 {[%clk 0:02:59]} 2. Nf3 {[%clk 0:03:00]}  c6 {[%clk 0:02:57]} 3. Nc3 {[%clk 0:02:58]}  Nf6 {[%clk 0:02:54]} 4. e5 {[%clk 0:02:54]}  Nfd7 {[%clk 0:02:49]} 5. e6 {[%clk 0:02:53]}  fxe6 {[%clk 0:02:50]} 6. d4 {[%clk 0:02:53]}  e5 {[%clk 0:02:47]} 7. dxe5 {[%clk 0:02:50]}  e6 {[%clk 0:02:44]} 8. Bg5 {[%clk 0:02:27]}  Be7 {[%clk 0:02:41]} 9. h4 {[%clk 0:02:27]}  O-O {[%clk 0:02:37]} 10. Bd3 {[%clk 0:02:25]}  Nc5 {[%clk 0:02:30]} 11. Bxe7 {[%clk 0:02:21]}  Nxd3+ {[%clk 0:02:29]} 12. Qxd3 {[%clk 0:02:14]}  Qxe7 {[%clk 0:02:30]} 13. Ng5 {[%clk 0:02:14]}  Rf5 {[%clk 0:02:22]} 14. O-O-O {[%clk 0:02:08]}  g6 {[%clk 0:02:02]} 15. g4 {[%clk 0:02:03]}  Rxg5 {[%clk 0:01:47]} 16. Qg3 {[%clk 0:02:02]}  Rxe5 {[%clk 0:01:18]} 17. Qxe5 {[%clk 0:02:01]}  Nd7 {[%clk 0:01:19]} 18. Qe3 {[%clk 0:01:56]}  e5 {[%clk 0:01:16]} 19. h5 {[%clk 0:01:49]}  g5 {[%clk 0:01:14]} 20. Rhe1 {[%clk 0:01:45]}  Qf6 {[%clk 0:00:58]} 21. Nxd5 {[%clk 0:01:40]}  cxd5 {[%clk 0:00:57]} 22. Rxd5 {[%clk 0:01:40]}  Qf4 {[%clk 0:00:32]} 23. Qxf4 {[%clk 0:01:41]}  gxf4 {[%clk 0:00:31]} 24. f3 {[%clk 0:01:41]}  Kf7 {[%clk 0:00:29]} 25. Rd6 {[%clk 0:01:40]}  a5 {[%clk 0:00:18]} 26. Red1 {[%clk 0:01:30]}  Ke7 {[%clk 0:00:18]} 27. Rh6 {[%clk 0:01:24]}  Nf8 {[%clk 0:00:18]} 28. Rd5 {[%clk 0:01:23]}  Ra6 {[%clk 0:00:17]} 29. Rxa6 {[%clk 0:01:20]}  bxa6 {[%clk 0:00:17]} 30. Rxe5+ {[%clk 0:01:21]}  Ne6 {[%clk 0:00:16]} 31. c3 {[%clk 0:01:13]}  Kd6 {[%clk 0:00:14]} 32. Rxa5 {[%clk 0:01:09]}  Bb7 {[%clk 0:00:14]} 33. Kd2 {[%clk 0:01:07]}  Bxf3 {[%clk 0:00:14]} 34. Rxa6+ {[%clk 0:01:05]}  Ke5 {[%clk 0:00:14]} 35. Ra5+ {[%clk 0:01:00]}  Kd6 {[%clk 0:00:13]} 36. Rf5 {[%clk 0:00:50]}  Bxg4 {[%clk 0:00:13]} 37. Rf7 {[%clk 0:00:50]}  Bxh5 {[%clk 0:00:11]} 38. Rxh7 {[%clk 0:00:50]}  Bg6 {[%clk 0:00:12]} 39. Rh6 {[%clk 0:00:50]}  Be4 {[%clk 0:00:11]} 40. a4 {[%clk 0:00:49]}  Kd5 {[%clk 0:00:10]} 41. Rh5+ {[%clk 0:00:47]}  Kc4 {[%clk 0:00:08]} 42. a5 {[%clk 0:00:41]}  Nc5 {[%clk 0:00:07]} 43. Rh4 {[%clk 0:00:31]}  Nb3+ {[%clk 0:00:07]} 44. Ke2 {[%clk 0:00:30]}  Nxa5 {[%clk 0:00:06]} 45. Rxf4 {[%clk 0:00:30]}  Kd5 {[%clk 0:00:06]} 46. Rh4 {[%clk 0:00:26]}  Nc4 {[%clk 0:00:05]} 47. b3 {[%clk 0:00:25]}  Na5 {[%clk 0:00:04]} 48. Rh5+ {[%clk 0:00:25]}  Kc6 {[%clk 0:00:02]} 49. Rxa5 {[%clk 0:00:26]}  Kb6 {[%clk 0:00:02]} 50. b4 {[%clk 0:00:26]}  Bc6 {[%clk 0:00:02]} 51. Ke3 {[%clk 0:00:27]}  Bb7 {[%clk 0:00:02]} 52. Kd4 {[%clk 0:00:28]}  Bc6 {[%clk 0:00:03]} 53. c4 {[%clk 0:00:28]}  Bf3 {[%clk 0:00:03]} 54. c5+ {[%clk 0:00:28]}  Kb7 {[%clk 0:00:03]} 55. b5 {[%clk 0:00:29]}  Bg2 {[%clk 0:00:03]} 56. Ra6 {[%clk 0:00:29]}  Bf3 {[%clk 0:00:03]} 57. c6+ {[%clk 0:00:29]}  Kc7 {[%clk 0:00:03]} 58. Kc5 {[%clk 0:00:30]}  Kb8 {[%clk 0:00:03]} 59. b6 {[%clk 0:00:30]}  Be2 {[%clk 0:00:02]} 60. Ra3 {[%clk 0:00:29]}  Bg4 {[%clk 0:00:02]} 61. Rg3 {[%clk 0:00:29]}  Bc8 {[%clk 0:00:00]} 62. Rg8 {[%clk 0:00:29]} 1-0

[Event "January 2 Early 2024"]
[Site "https://www.chess.com"]
[Date "2024.01.02"]
[Round "11"]
[White "Aggelis, Nikolaos"]
[Black "Micic, Aleksa"]
[Result "1-0"]
[Board "80"]
[TimeControl "180+1"]
[WhiteFideId "4213220"]
[BlackFideId "989940"]
[WhiteElo "2572"]
[BlackElo "2446"]
[WhiteTeam "GRE"]
[BlackTeam "SRB"]
[WhiteClock "0:00:44"]
[BlackClock "0:01:17"]

1. c4 {[%clk 0:03:00]}  Nf6 {[%clk 0:02:59]} 2. g3 {[%clk 0:02:56]}  g6 {[%clk 0:02:58]} 3. b3 {[%clk 0:02:55]}  Bg7 {[%clk 0:02:58]} 4. Bb2 {[%clk 0:02:56]}  O-O {[%clk 0:02:58]} 5. Bg2 {[%clk 0:02:56]}  d6 {[%clk 0:02:59]} 6. Nf3 {[%clk 0:02:55]}  e5 {[%clk 0:02:59]} 7. O-O {[%clk 0:02:56]}  Nc6 {[%clk 0:02:59]} 8. d4 {[%clk 0:02:51]}  exd4 {[%clk 0:02:53]} 9. Nxd4 {[%clk 0:02:50]}  Nxd4 {[%clk 0:02:52]} 10. Qxd4 {[%clk 0:02:46]}  Ne8 {[%clk 0:02:49]} 11. Qd2 {[%clk 0:02:45]}  Bxb2 {[%clk 0:02:49]} 12. Qxb2 {[%clk 0:02:46]}  Qf6 {[%clk 0:02:49]} 13. Nc3 {[%clk 0:02:44]}  Be6 {[%clk 0:02:49]} 14. Bxb7 {[%clk 0:02:26]}  Rb8 {[%clk 0:02:47]} 15. Bd5 {[%clk 0:02:19]}  Ng7 {[%clk 0:02:35]} 16. Qd2 {[%clk 0:02:11]}  Nf5 {[%clk 0:02:30]} 17. Rac1 {[%clk 0:02:04]}  h5 {[%clk 0:02:28]} 18. Qf4 {[%clk 0:02:00]}  Kg7 {[%clk 0:02:24]} 19. h4 {[%clk 0:01:57]}  Rb6 {[%clk 0:02:15]} 20. Rfd1 {[%clk 0:01:56]}  c6 {[%clk 0:02:14]} 21. Ne4 {[%clk 0:01:47]}  Qe5 {[%clk 0:02:10]} 22. Qxe5+ {[%clk 0:01:48]}  dxe5 {[%clk 0:02:09]} 23. Bxe6 {[%clk 0:01:48]}  fxe6 {[%clk 0:02:10]} 24. Rd7+ {[%clk 0:01:46]}  Rf7 {[%clk 0:02:10]} 25. Rxf7+ {[%clk 0:01:23]}  Kxf7 {[%clk 0:02:08]} 26. e3 {[%clk 0:01:23]}  a5 {[%clk 0:02:00]} 27. Rd1 {[%clk 0:01:21]}  Ke7 {[%clk 0:01:59]} 28. Nc5 {[%clk 0:01:20]}  Nd6 {[%clk 0:01:54]} 29. Kg2 {[%clk 0:01:08]}  Rb4 {[%clk 0:01:33]} 30. Nd3 {[%clk 0:01:02]}  Rb7 {[%clk 0:01:26]} 31. Nxe5 {[%clk 0:01:02]}  a4 {[%clk 0:01:26]} 32. Nxc6+ {[%clk 0:00:58]}  Kd7 {[%clk 0:01:26]} 33. Ne5+ {[%clk 0:00:55]}  Kc7 {[%clk 0:01:25]} 34. c5 {[%clk 0:00:52]}  Ne4 {[%clk 0:01:25]} 35. Rd7+ {[%clk 0:00:51]}  Kc8 {[%clk 0:01:25]} 36. Rxb7 {[%clk 0:00:51]}  Kxb7 {[%clk 0:01:26]} 37. c6+ {[%clk 0:00:50]}  Kc7 {[%clk 0:01:26]} 38. bxa4 {[%clk 0:00:51]}  Nc3 {[%clk 0:01:25]} 39. Nxg6 {[%clk 0:00:48]}  Kxc6 {[%clk 0:01:25]} 40. Nf4 {[%clk 0:00:48]}  Kd6 {[%clk 0:01:22]} 41. Nxh5 {[%clk 0:00:48]}  Nxa4 {[%clk 0:01:23]} 42. g4 {[%clk 0:00:46]}  Ke5 {[%clk 0:01:23]} 43. f4+ {[%clk 0:00:43]}  Ke4 {[%clk 0:01:23]} 44. g5 {[%clk 0:00:44]}  Nc5 {[%clk 0:01:20]} 45. g6 {[%clk 0:00:43]}  Kxe3 {[%clk 0:01:17]} 46. g7 {[%clk 0:00:44]} 1-0

[Event "January 2 Early 2024"]
[Site "https://www.chess.com"]
[Date "2024.01.02"]
[Round "11"]
[White "Bashirli, Saadat"]
[Black "Womacka, Mathias"]
[Result "0-1"]
[Board "82"]
[TimeControl "180+1"]
[WhiteFideId "13429990"]
[BlackFideId "4611390"]
[WhiteElo "2442"]
[BlackElo "2550"]
[WhiteTeam "AZE"]
[BlackTeam "GER"]
[WhiteClock "0:00:06"]
[BlackClock "0:00:24"]

1. d4 {[%clk 0:03:00]}  Nf6 {[%clk 0:02:59]} 2. e3 {[%clk 0:02:59]}  e6 {[%clk 0:02:59]} 3. Bd3 {[%clk 0:02:57]}  c5 {[%clk 0:02:57]} 4. c3 {[%clk 0:02:55]}  Nc6 {[%clk 0:02:56]} 5. f4 {[%clk 0:02:55]}  d6 {[%clk 0:02:54]} 6. Nf3 {[%clk 0:02:53]}  Be7 {[%clk 0:02:54]} 7. O-O {[%clk 0:02:52]}  O-O {[%clk 0:02:55]} 8. Nbd2 {[%clk 0:02:51]}  e5 {[%clk 0:02:54]} 9. b3 {[%clk 0:02:41]}  Bg4 {[%clk 0:02:38]} 10. Qe1 {[%clk 0:02:38]}  Bxf3 {[%clk 0:02:32]} 11. fxe5 {[%clk 0:02:03]}  dxe5 {[%clk 0:02:28]} 12. gxf3 {[%clk 0:01:56]}  exd4 {[%clk 0:02:22]} 13. cxd4 {[%clk 0:01:52]}  cxd4 {[%clk 0:02:21]} 14. e4 {[%clk 0:01:49]}  Nb4 {[%clk 0:02:05]} 15. Qe2 {[%clk 0:01:48]}  Nh5 {[%clk 0:01:44]} 16. Nc4 {[%clk 0:01:45]}  b5 {[%clk 0:01:38]} 17. Ne5 {[%clk 0:01:42]}  Bd6 {[%clk 0:01:37]} 18. Ng4 {[%clk 0:01:36]}  Be7 {[%clk 0:01:37]} 19. Bxb5 {[%clk 0:01:31]}  Bd6 {[%clk 0:01:37]} 20. e5 {[%clk 0:01:28]}  d3 {[%clk 0:01:29]} 21. Qe4 {[%clk 0:01:21]}  Bc5+ {[%clk 0:01:20]} 22. Kg2 {[%clk 0:01:17]}  d2 {[%clk 0:01:19]} 23. Ba3 {[%clk 0:01:12]}  a5 {[%clk 0:01:02]} 24. Rad1 {[%clk 0:00:57]}  Qg5 {[%clk 0:00:59]} 25. Kh1 {[%clk 0:00:49]}  Rad8 {[%clk 0:00:58]} 26. Bxb4 {[%clk 0:00:44]}  axb4 {[%clk 0:00:56]} 27. Bc4 {[%clk 0:00:40]}  Rd4 {[%clk 0:00:49]} 28. Qe2 {[%clk 0:00:31]}  Qh4 {[%clk 0:00:44]} 29. Rg1 {[%clk 0:00:27]}  Nf4 {[%clk 0:00:41]} 30. Qf1 {[%clk 0:00:23]}  g6 {[%clk 0:00:36]} 31. Nf6+ {[%clk 0:00:21]}  Kg7 {[%clk 0:00:34]} 32. Rg4 {[%clk 0:00:21]}  Qh6 {[%clk 0:00:31]} 33. Ne4 {[%clk 0:00:17]}  Bb6 {[%clk 0:00:28]} 34. Qg2 {[%clk 0:00:15]}  Nxg2 {[%clk 0:00:27]} 35. Rxg2 {[%clk 0:00:15]}  Qe3 {[%clk 0:00:26]} 36. Rf2 {[%clk 0:00:09]}  Rxe4 {[%clk 0:00:24]} 37. fxe4 {[%clk 0:00:06]}  Qxf2 {[%clk 0:00:24]} 0-1

[Event "January 2 Early 2024"]
[Site "https://www.chess.com"]
[Date "2024.01.02"]
[Round "11"]
[White "Sharapov, Evgeny"]
[Black "Nemec, Jachym"]
[Result "0-1"]
[Board "83"]
[TimeControl "180+1"]
[WhiteFideId "14103133"]
[BlackFideId "23716525"]
[WhiteElo "2549"]
[BlackElo "2441"]
[WhiteTeam "UKR"]
[BlackTeam "CZE"]
[WhiteClock "0:02:45"]
[BlackClock "0:02:37"]

1. e4 {[%clk 0:03:00]}  c6 {[%clk 0:02:59]} 2. d4 {[%clk 0:02:59]}  d5 {[%clk 0:03:00]} 3. e5 {[%clk 0:03:00]}  c5 {[%clk 0:03:00]} 4. Nf3 {[%clk 0:03:00]}  Nc6 {[%clk 0:02:59]} 5. c3 {[%clk 0:02:59]}  Bg4 {[%clk 0:02:58]} 6. Be2 {[%clk 0:02:59]}  Bxf3 {[%clk 0:02:58]} 7. Bxf3 {[%clk 0:02:59]}  e6 {[%clk 0:02:59]} 8. O-O {[%clk 0:02:59]}  cxd4 {[%clk 0:02:59]} 9. cxd4 {[%clk 0:02:59]}  Nge7 {[%clk 0:03:00]} 10. Be3 {[%clk 0:02:59]}  Nf5 {[%clk 0:02:59]} 11. Nc3 {[%clk 0:02:58]}  Be7 {[%clk 0:02:59]} 12. Qd2 {[%clk 0:02:59]}  O-O {[%clk 0:02:58]} 13. a3 {[%clk 0:02:58]}  Rc8 {[%clk 0:02:57]} 14. Rac1 {[%clk 0:02:58]}  Qb6 {[%clk 0:02:55]} 15. b4 {[%clk 0:02:57]}  Ncxd4 {[%clk 0:02:40]} 16. Bg4 {[%clk 0:02:54]}  Nxe3 {[%clk 0:02:38]} 17. Qxe3 {[%clk 0:02:45]}  Nb3 {[%clk 0:02:37]} 0-1

[Event "January 2 Early 2024"]
[Site "https://www.chess.com"]
[Date "2024.01.02"]
[Round "11"]
[White "Rogov, Matfey"]
[Black "Mayaud, Raphael"]
[Result "1-0"]
[Board "85"]
[TimeControl "180+1"]
[WhiteFideId "44191308"]
[BlackFideId "627151"]
[WhiteElo "2532"]
[BlackElo "2427"]
[WhiteTeam "RUS"]
[BlackTeam "FRA"]
[WhiteClock "0:00:34"]
[BlackClock "0:00:00"]

1. Nc3 {[%clk 0:03:00]}  d5 {[%clk 0:02:59]} 2. d4 {[%clk 0:02:59]}  Nf6 {[%clk 0:02:58]} 3. Bg5 {[%clk 0:02:59]}  c6 {[%clk 0:02:52]} 4. e3 {[%clk 0:02:58]}  Bf5 {[%clk 0:02:50]} 5. Nf3 {[%clk 0:02:56]}  Nbd7 {[%clk 0:02:49]} 6. Bd3 {[%clk 0:02:56]}  e6 {[%clk 0:02:40]} 7. Bxf5 {[%clk 0:02:49]}  exf5 {[%clk 0:02:40]} 8. Qd3 {[%clk 0:02:50]}  g6 {[%clk 0:02:40]} 9. Ne5 {[%clk 0:02:50]}  Be7 {[%clk 0:02:38]} 10. Nxd7 {[%clk 0:02:47]}  Qxd7 {[%clk 0:02:23]} 11. O-O {[%clk 0:02:47]}  O-O {[%clk 0:02:21]} 12. f3 {[%clk 0:02:39]}  Nh5 {[%clk 0:02:10]} 13. Bxe7 {[%clk 0:02:37]}  Qxe7 {[%clk 0:02:11]} 14. e4 {[%clk 0:02:34]}  dxe4 {[%clk 0:02:00]} 15. fxe4 {[%clk 0:02:33]}  fxe4 {[%clk 0:01:57]} 16. Nxe4 {[%clk 0:02:33]}  f5 {[%clk 0:01:56]} 17. Nc5 {[%clk 0:02:25]}  Qf7 {[%clk 0:01:42]} 18. Rae1 {[%clk 0:02:18]}  Rae8 {[%clk 0:01:41]} 19. Qa3 {[%clk 0:02:14]}  a6 {[%clk 0:01:36]} 20. Qb4 {[%clk 0:02:14]}  Rxe1 {[%clk 0:01:15]} 21. Rxe1 {[%clk 0:02:14]}  Re8 {[%clk 0:01:13]} 22. Rxe8+ {[%clk 0:02:11]}  Qxe8 {[%clk 0:01:14]} 23. Qb3+ {[%clk 0:02:04]}  Kg7 {[%clk 0:00:42]} 24. Qc3 {[%clk 0:01:56]}  Nf4 {[%clk 0:00:27]} 25. Qd2 {[%clk 0:01:41]}  g5 {[%clk 0:00:20]} 26. g3 {[%clk 0:01:36]}  Nh3+ {[%clk 0:00:13]} 27. Kg2 {[%clk 0:01:36]}  g4 {[%clk 0:00:13]} 28. c4 {[%clk 0:01:24]}  Qe7 {[%clk 0:00:11]} 29. Kf1 {[%clk 0:01:05]}  b6 {[%clk 0:00:11]} 30. Nd3 {[%clk 0:01:03]}  Qe4 {[%clk 0:00:11]} 31. Nf2 {[%clk 0:00:57]}  Qf3 {[%clk 0:00:09]} 32. Qe2 {[%clk 0:00:49]}  Qxe2+ {[%clk 0:00:03]} 33. Kxe2 {[%clk 0:00:50]}  Nxf2 {[%clk 0:00:02]} 34. Kxf2 {[%clk 0:00:51]}  Kf6 {[%clk 0:00:03]} 35. Ke3 {[%clk 0:00:46]}  h5 {[%clk 0:00:04]} 36. Kf4 {[%clk 0:00:44]}  b5 {[%clk 0:00:02]} 37. b3 {[%clk 0:00:41]}  bxc4 {[%clk 0:00:02]} 38. bxc4 {[%clk 0:00:41]}  Ke6 {[%clk 0:00:02]} 39. Kg5 {[%clk 0:00:39]}  c5 {[%clk 0:00:03]} 40. dxc5 {[%clk 0:00:35]}  Ke5 {[%clk 0:00:01]} 41. Kxh5 {[%clk 0:00:34]}  Kd4 {[%clk 0:00:00]} 42. c6 {[%clk 0:00:34]} 1-0

[Event "January 2 Early 2024"]
[Site "https://www.chess.com"]
[Date "2024.01.02"]
[Round "11"]
[White "Petukhov, Dmitry"]
[Black "Nayak Rajesh"]
[Result "0-1"]
[Board "86"]
[TimeControl "180+1"]
[WhiteFideId "4142748"]
[BlackFideId "35017152"]
[WhiteElo "2527"]
[BlackElo "2407"]
[WhiteTeam "RUS"]
[BlackTeam "IND"]
[WhiteClock "0:00:45"]
[BlackClock "0:01:24"]

1. e4 {[%clk 0:03:00]}  d6 {[%clk 0:02:58]} 2. d4 {[%clk 0:02:53]}  Nf6 {[%clk 0:02:57]} 3. Nc3 {[%clk 0:02:51]}  g6 {[%clk 0:02:56]} 4. Bg5 {[%clk 0:02:50]}  Bg7 {[%clk 0:02:56]} 5. Qd2 {[%clk 0:02:50]}  a6 {[%clk 0:02:55]} 6. f3 {[%clk 0:02:50]}  b5 {[%clk 0:02:55]} 7. a3 {[%clk 0:02:51]}  Bb7 {[%clk 0:02:55]} 8. Bd3 {[%clk 0:02:50]}  Nfd7 {[%clk 0:02:55]} 9. h4 {[%clk 0:02:50]}  h6 {[%clk 0:02:54]} 10. Be3 {[%clk 0:02:49]}  c5 {[%clk 0:02:55]} 11. dxc5 {[%clk 0:02:47]}  Nxc5 {[%clk 0:02:55]} 12. h5 {[%clk 0:02:48]}  g5 {[%clk 0:02:55]} 13. Nge2 {[%clk 0:02:46]}  Nbd7 {[%clk 0:02:48]} 14. Bd4 {[%clk 0:02:43]}  Ne5 {[%clk 0:02:47]} 15. O-O {[%clk 0:02:34]}  O-O {[%clk 0:02:35]} 16. f4 {[%clk 0:02:33]}  Nexd3 {[%clk 0:02:35]} 17. Bxg7 {[%clk 0:02:29]}  Kxg7 {[%clk 0:02:34]} 18. cxd3 {[%clk 0:02:26]}  Nb3 {[%clk 0:02:35]} 19. Qe3 {[%clk 0:02:25]}  Nxa1 {[%clk 0:02:35]} 20. fxg5 {[%clk 0:02:25]}  Nc2 {[%clk 0:02:32]} 21. gxh6+ {[%clk 0:02:24]}  Kh7 {[%clk 0:02:31]} 22. Qg5 {[%clk 0:02:22]}  Rg8 {[%clk 0:02:20]} 23. Rxf7+ {[%clk 0:02:20]}  Kh8 {[%clk 0:02:20]} 24. Qf5 {[%clk 0:02:17]}  Rxg2+ {[%clk 0:02:09]} 25. Kh1 {[%clk 0:02:16]}  Qg8 {[%clk 0:02:01]} 26. h7 {[%clk 0:01:31]}  Qg5 {[%clk 0:01:54]} 27. Qxg5 {[%clk 0:01:19]}  Rxg5 {[%clk 0:01:53]} 28. Nf4 {[%clk 0:01:19]}  Rg7 {[%clk 0:01:25]} 29. Rf5 {[%clk 0:01:07]}  Ne3 {[%clk 0:01:24]} 30. Ng6+ {[%clk 0:01:04]}  Rxg6 {[%clk 0:01:24]} 31. hxg6 {[%clk 0:00:45]}  Nxf5 {[%clk 0:01:24]} 0-1

[Event "January 2 Early 2024"]
[Site "https://www.chess.com"]
[Date "2024.01.02"]
[Round "11"]
[White "Novak, Ratko"]
[Black "Baches Garcia, Guillermo"]
[Result "0-1"]
[Board "87"]
[TimeControl "180+1"]
[WhiteFideId "14511827"]
[BlackFideId "2209764"]
[WhiteElo "2392"]
[BlackElo "2517"]
[WhiteTeam "CRO"]
[BlackTeam "ESP"]
[WhiteClock "0:01:17"]
[BlackClock "0:00:45"]

1. d4 {[%clk 0:03:00]}  d5 {[%clk 0:03:00]} 2. c4 {[%clk 0:03:01]}  e6 {[%clk 0:03:00]} 3. cxd5 {[%clk 0:03:01]}  exd5 {[%clk 0:03:00]} 4. Nc3 {[%clk 0:03:02]}  a6 {[%clk 0:03:00]} 5. f3 {[%clk 0:03:02]}  c5 {[%clk 0:02:42]} 6. dxc5 {[%clk 0:02:59]}  Nf6 {[%clk 0:02:36]} 7. Be3 {[%clk 0:02:54]}  Nc6 {[%clk 0:02:32]} 8. Bf2 {[%clk 0:02:54]}  d4 {[%clk 0:02:27]} 9. Na4 {[%clk 0:02:54]}  Qa5+ {[%clk 0:02:27]} 10. Qd2 {[%clk 0:02:31]}  Qxa4 {[%clk 0:02:25]} 11. a3 {[%clk 0:02:17]}  Bxc5 {[%clk 0:02:15]} 12. Rc1 {[%clk 0:02:16]}  Be7 {[%clk 0:02:00]} 13. g4 {[%clk 0:02:15]}  h6 {[%clk 0:01:52]} 14. Nh3 {[%clk 0:02:15]}  Qa5 {[%clk 0:01:47]} 15. Qxa5 {[%clk 0:02:09]}  Nxa5 {[%clk 0:01:47]} 16. Bxd4 {[%clk 0:02:08]}  Nb3 {[%clk 0:01:47]} 17. Rd1 {[%clk 0:02:08]}  Nxd4 {[%clk 0:01:46]} 18. Rxd4 {[%clk 0:02:09]}  Be6 {[%clk 0:01:44]} 19. e4 {[%clk 0:02:08]}  Rc8 {[%clk 0:01:38]} 20. Nf4 {[%clk 0:02:06]}  Bb3 {[%clk 0:01:23]} 21. Nd3 {[%clk 0:01:52]}  O-O {[%clk 0:01:20]} 22. e5 {[%clk 0:01:50]}  Nd5 {[%clk 0:01:12]} 23. Be2 {[%clk 0:01:46]}  Rfd8 {[%clk 0:01:03]} 24. O-O {[%clk 0:01:46]}  Ne3 {[%clk 0:00:57]} 25. Rxd8+ {[%clk 0:01:43]}  Rxd8 {[%clk 0:00:57]} 26. Rc1 {[%clk 0:01:39]}  Bc4 {[%clk 0:00:54]} 27. Nf4 {[%clk 0:01:32]}  Bxe2 {[%clk 0:00:51]} 28. Nxe2 {[%clk 0:01:33]}  Rd1+ {[%clk 0:00:50]} 29. Rxd1 {[%clk 0:01:32]}  Nxd1 {[%clk 0:00:50]} 30. b4 {[%clk 0:01:28]}  Ne3 {[%clk 0:00:45]} 31. h3 {[%clk 0:01:17]}  Nc4 {[%clk 0:00:45]} 0-1